[Event "Live Chess"]
[Site "Chess.com"]
[Date "2011.02.01"]
[Round "-"]
[White "yogendra077"]
[Black "hipposcottimus"]
[Result "0-1"]
[CurrentPosition "1r4k1/p1p3pp/3p2n1/4pr2/2P5/1P2B1PN/P2Q1PqP/1R2R1Kb w - -"]
[Timezone "UTC"]
[ECO "A10"]
[ECOUrl "https://www.chess.com/openings/English-Opening-Jaenisch-Gambit"]
[UTCDate "2011.02.01"]
[UTCTime "05:37:56"]
[WhiteElo "1849"]
[BlackElo "1752"]
[TimeControl "60"]
[Termination "hipposcottimus won by checkmate"]
[StartTime "05:37:56"]
[EndDate "2011.02.01"]
[EndTime "05:39:28"]
[Link "https://www.chess.com/game/live/93538552"]

1. c4 {[%clk 0:01:00]} 1... b5 {[%clk 0:01:00]} 2. Nc3 {[%clk 0:00:59.9]} 2... bxc4 {[%clk 0:00:58.7]} 3. e4 {[%clk 0:00:58.7]} 3... Ba6 {[%clk 0:00:54.3]} 4. Nf3 {[%clk 0:00:58.6]} 4... d6 {[%clk 0:00:52]} 5. d3 {[%clk 0:00:58]} 5... e5 {[%clk 0:00:51.2]} 6. dxc4 {[%clk 0:00:57.3]} 6... Be7 {[%clk 0:00:50.3]} 7. g3 {[%clk 0:00:56]} 7... Nc6 {[%clk 0:00:48]} 8. Bg2 {[%clk 0:00:55.5]} 8... Nf6 {[%clk 0:00:44.7]} 9. O-O {[%clk 0:00:54.6]} 9... O-O {[%clk 0:00:43.4]} 10. b3 {[%clk 0:00:51.8]} 10... Bb7 {[%clk 0:00:41.8]} 11. Nd5 {[%clk 0:00:50.9]} 11... Rb8 {[%clk 0:00:40.8]} 12. Nxf6+ {[%clk 0:00:49.5]} 12... Bxf6 {[%clk 0:00:39.8]} 13. Bb2 {[%clk 0:00:49]} 13... Bg5 {[%clk 0:00:38.5]} 14. Rb1 {[%clk 0:00:47.6]} 14... Ne7 {[%clk 0:00:34.4]} 15. Nxg5 {[%clk 0:00:46.8]} 15... Ng6 {[%clk 0:00:33.8]} 16. Bc1 {[%clk 0:00:44.9]} 16... f6 {[%clk 0:00:33.5]} 17. Nh3 {[%clk 0:00:43.5]} 17... f5 {[%clk 0:00:32.9]} 18. Bg5 {[%clk 0:00:40.9]} 18... Qe8 {[%clk 0:00:29.2]} 19. exf5 {[%clk 0:00:39.9]} 19... Rxf5 {[%clk 0:00:28]} 20. Be4 {[%clk 0:00:36.2]} 20... Bxe4 {[%clk 0:00:26.8]} 21. Re1 {[%clk 0:00:27.5]} 21... Qc6 {[%clk 0:00:25.9]} 22. Be3 {[%clk 0:00:22]} 22... Bh1 {[%clk 0:00:23.8]} 23. Qd2 {[%clk 0:00:17]} 23... Qg2# {[%clk 0:00:22.8]} 0-1

[Event "Live Chess"]
[Site "Chess.com"]
[Date "2011.02.01"]
[Round "-"]
[White "hipposcottimus"]
[Black "yogendra077"]
[Result "1-0"]
[CurrentPosition "3rk1r1/p1pbQp1p/4p1p1/6B1/3P4/8/PPP1BPPP/RN3RK1 b - -"]
[Timezone "UTC"]
[ECO "B02"]
[ECOUrl "https://www.chess.com/openings/Alekhines-Defense-Brooklyn-Variation-3.d4-d6"]
[UTCDate "2011.02.01"]
[UTCTime "05:36:32"]
[WhiteElo "1740"]
[BlackElo "1859"]
[TimeControl "60"]
[Termination "hipposcottimus won by checkmate"]
[StartTime "05:36:32"]
[EndDate "2011.02.01"]
[EndTime "05:37:32"]
[Link "https://www.chess.com/game/live/93538249"]

1. e4 {[%clk 0:01:00]} 1... Nf6 {[%clk 0:01:00]} 2. e5 {[%clk 0:00:58.8]} 2... Ng8 {[%clk 0:00:57.7]} 3. d4 {[%clk 0:00:57.6]} 3... d6 {[%clk 0:00:57.6]} 4. Nf3 {[%clk 0:00:56.7]} 4... dxe5 {[%clk 0:00:56.8]} 5. Nxe5 {[%clk 0:00:56.5]} 5... Nc6 {[%clk 0:00:56.1]} 6. Qe2 {[%clk 0:00:54.4]} 6... e6 {[%clk 0:00:55]} 7. Qb5 {[%clk 0:00:50.1]} 7... Bd6 {[%clk 0:00:49.5]} 8. Nxc6 {[%clk 0:00:49]} 8... bxc6 {[%clk 0:00:47.8]} 9. Qxc6+ {[%clk 0:00:48.3]} 9... Bd7 {[%clk 0:00:44.7]} 10. Qf3 {[%clk 0:00:48]} 10... Qf6 {[%clk 0:00:43]} 11. Be2 {[%clk 0:00:45.3]} 11... Rd8 {[%clk 0:00:41.3]} 12. Be3 {[%clk 0:00:43.7]} 12... Nh6 {[%clk 0:00:40.2]} 13. O-O {[%clk 0:00:41.9]} 13... g6 {[%clk 0:00:39.6]} 14. Qxf6 {[%clk 0:00:40.5]} 14... Rf8 {[%clk 0:00:36.3]} 15. Bxh6 {[%clk 0:00:39]} 15... Rg8 {[%clk 0:00:34.5]} 16. Bg5 {[%clk 0:00:36.7]} 16... Be7 {[%clk 0:00:34.4]} 17. Qxe7# {[%clk 0:00:34.6]} 1-0

[Event "Live Chess"]
[Site "Chess.com"]
[Date "2011.02.01"]
[Round "-"]
[White "hipposcottimus"]
[Black "CONGOMON"]
[Result "1-0"]
[CurrentPosition "8/5R2/p6p/1p6/3kP3/7P/1PB3P1/6K1 b - -"]
[Timezone "UTC"]
[ECO "C00"]
[ECOUrl "https://www.chess.com/openings/Pirc-Defense-Small-Center-Defense"]
[UTCDate "2011.02.01"]
[UTCTime "05:34:24"]
[WhiteElo "1728"]
[BlackElo "1414"]
[TimeControl "60"]
[Termination "hipposcottimus won by resignation"]
[StartTime "05:34:24"]
[EndDate "2011.02.01"]
[EndTime "05:36:09"]
[Link "https://www.chess.com/game/live/93537788"]

1. e4 {[%clk 0:01:00]} 1... e6 {[%clk 0:01:00]} 2. d4 {[%clk 0:00:59.2]} 2... d6 {[%clk 0:00:59.5]} 3. f4 {[%clk 0:00:57.8]} 3... h6 {[%clk 0:00:59]} 4. Nf3 {[%clk 0:00:57.5]} 4... g5 {[%clk 0:00:58.5]} 5. c4 {[%clk 0:00:56.4]} 5... gxf4 {[%clk 0:00:57.6]} 6. Bxf4 {[%clk 0:00:56.1]} 6... e5 {[%clk 0:00:57]} 7. dxe5 {[%clk 0:00:54.1]} 7... dxe5 {[%clk 0:00:55.5]} 8. Qxd8+ {[%clk 0:00:52.3]} 8... Kxd8 {[%clk 0:00:55]} 9. Nxe5 {[%clk 0:00:52]} 9... Be7 {[%clk 0:00:54.3]} 10. Nxf7+ {[%clk 0:00:50.9]} 10... Ke8 {[%clk 0:00:53.6]} 11. Nxh8 {[%clk 0:00:50.1]} 11... Nf6 {[%clk 0:00:52.9]} 12. Ng6 {[%clk 0:00:48.3]} 12... Kf7 {[%clk 0:00:50.8]} 13. Ne5+ {[%clk 0:00:46.4]} 13... Ke6 {[%clk 0:00:48.6]} 14. Nc3 {[%clk 0:00:45.4]} 14... Bd6 {[%clk 0:00:45]} 15. Nd5 {[%clk 0:00:44.6]} 15... Bxe5 {[%clk 0:00:43]} 16. Bxe5 {[%clk 0:00:44]} 16... Kxe5 {[%clk 0:00:42.1]} 17. Bd3 {[%clk 0:00:43.1]} 17... Bg4 {[%clk 0:00:37.7]} 18. Nxf6 {[%clk 0:00:37.4]} 18... Kxf6 {[%clk 0:00:36]} 19. O-O+ {[%clk 0:00:37.2]} 19... Ke5 {[%clk 0:00:34.4]} 20. h3 {[%clk 0:00:36.5]} 20... Bd7 {[%clk 0:00:32.7]} 21. Rad1 {[%clk 0:00:35.8]} 21... c6 {[%clk 0:00:31.6]} 22. Bc2 {[%clk 0:00:35.1]} 22... Be6 {[%clk 0:00:26.6]} 23. Rf8 {[%clk 0:00:33.6]} 23... Bxc4 {[%clk 0:00:23.4]} 24. Rdd8 {[%clk 0:00:32.5]} 24... b5 {[%clk 0:00:18.7]} 25. Rxb8 {[%clk 0:00:31.3]} 25... Rxb8 {[%clk 0:00:16.5]} 26. Rxb8 {[%clk 0:00:31]} 26... Kd4 {[%clk 0:00:14.2]} 27. Rc8 {[%clk 0:00:27.9]} 27... Bxa2 {[%clk 0:00:11.4]} 28. Rxc6 {[%clk 0:00:25.8]} 28... Bf7 {[%clk 0:00:08.3]} 29. Rc7 {[%clk 0:00:24.8]} 29... a6 {[%clk 0:00:06.8]} 30. Rxf7 {[%clk 0:00:23.6]} 1-0

[Event "Live Chess"]
[Site "Chess.com"]
[Date "2011.02.01"]
[Round "-"]
[White "hipposcottimus"]
[Black "hansjaru"]
[Result "1-0"]
[CurrentPosition "3rr1kb/p4p2/1p3Pp1/2ppB3/3P3Q/7R/P1P3PP/6K1 b - -"]
[Timezone "UTC"]
[ECO "B01"]
[ECOUrl "https://www.chess.com/openings/Scandinavian-Defense-Mieses-Kotrc-Variation-3.Nc3-Qd8-4.d4-c6"]
[UTCDate "2011.02.01"]
[UTCTime "05:31:42"]
[WhiteElo "1726"]
[BlackElo "1588"]
[TimeControl "60"]
[Termination "hipposcottimus won on time"]
[StartTime "05:31:42"]
[EndDate "2011.02.01"]
[EndTime "05:33:32"]
[Link "https://www.chess.com/game/live/93537206"]

1. e4 {[%clk 0:01:00]} 1... d5 {[%clk 0:01:00]} 2. exd5 {[%clk 0:00:58.5]} 2... Qxd5 {[%clk 0:00:59.8]} 3. Nc3 {[%clk 0:00:58.3]} 3... Qd8 {[%clk 0:00:59.5]} 4. d4 {[%clk 0:00:56.8]} 4... c6 {[%clk 0:00:59.2]} 5. Nf3 {[%clk 0:00:56.3]} 5... Nf6 {[%clk 0:00:59]} 6. Be2 {[%clk 0:00:55.8]} 6... e6 {[%clk 0:00:58.7]} 7. Bg5 {[%clk 0:00:55]} 7... g6 {[%clk 0:00:58.5]} 8. O-O {[%clk 0:00:51.5]} 8... Nbd7 {[%clk 0:00:56.9]} 9. Ne5 {[%clk 0:00:51.2]} 9... Bg7 {[%clk 0:00:55.9]} 10. Nxd7 {[%clk 0:00:50.1]} 10... Qxd7 {[%clk 0:00:55.3]} 11. Bg4 {[%clk 0:00:48.9]} 11... O-O {[%clk 0:00:53.5]} 12. Bh3 {[%clk 0:00:46]} 12... Qc7 {[%clk 0:00:51.9]} 13. f4 {[%clk 0:00:41.2]} 13... Nd5 {[%clk 0:00:48.9]} 14. f5 {[%clk 0:00:40.1]} 14... Qb6 {[%clk 0:00:45.9]} 15. Nxd5 {[%clk 0:00:39]} 15... exd5 {[%clk 0:00:44.5]} 16. Be3 {[%clk 0:00:38.2]} 16... Qxb2 {[%clk 0:00:42.7]} 17. Rf2 {[%clk 0:00:33.5]} 17... Qa3 {[%clk 0:00:41.4]} 18. Bd2 {[%clk 0:00:32.3]} 18... Qd6 {[%clk 0:00:40]} 19. Bf4 {[%clk 0:00:31.2]} 19... Qd7 {[%clk 0:00:37.6]} 20. Be5 {[%clk 0:00:30.5]} 20... Qd8 {[%clk 0:00:34.7]} 21. f6 {[%clk 0:00:29.4]} 21... Bh8 {[%clk 0:00:31.6]} 22. Bxc8 {[%clk 0:00:26.4]} 22... Rxc8 {[%clk 0:00:28.6]} 23. Qf3 {[%clk 0:00:26.1]} 23... Qd7 {[%clk 0:00:25.8]} 24. Qg3 {[%clk 0:00:24.9]} 24... Qf5 {[%clk 0:00:22.7]} 25. Rxf5 {[%clk 0:00:22.8]} 25... b6 {[%clk 0:00:20.7]} 26. Rh5 {[%clk 0:00:22.3]} 26... Rcd8 {[%clk 0:00:17.5]} 27. Rxh7 {[%clk 0:00:21.9]} 27... Kxh7 {[%clk 0:00:15.6]} 28. Qh4+ {[%clk 0:00:21.5]} 28... Kg8 {[%clk 0:00:14.8]} 29. Rf1 {[%clk 0:00:21.2]} 29... c5 {[%clk 0:00:09.5]} 30. Rf3 {[%clk 0:00:20.7]} 30... Rfe8 {[%clk 0:00:06.4]} 31. Rh3 {[%clk 0:00:19.1]} 1-0

[Event "Live Chess"]
[Site "Chess.com"]
[Date "2011.02.01"]
[Round "-"]
[White "hansjaru"]
[Black "hipposcottimus"]
[Result "0-1"]
[CurrentPosition "4r2k/p1Q2p1p/1p6/8/3P4/P2bP1P1/1P1BqP1P/R1R1K3 w - -"]
[Timezone "UTC"]
[ECO "D00"]
[ECOUrl "https://www.chess.com/openings/Queens-Pawn-Opening-1...d5-2.c3"]
[UTCDate "2011.02.01"]
[UTCTime "05:29:23"]
[WhiteElo "1593"]
[BlackElo "1721"]
[TimeControl "60"]
[Termination "hipposcottimus won by checkmate"]
[StartTime "05:29:23"]
[EndDate "2011.02.01"]
[EndTime "05:30:50"]
[Link "https://www.chess.com/game/live/93536810"]

1. d4 {[%clk 0:01:00]} 1... d5 {[%clk 0:01:00]} 2. c3 {[%clk 0:00:59.7]} 2... c6 {[%clk 0:00:59.7]} 3. Nf3 {[%clk 0:00:58.2]} 3... e6 {[%clk 0:00:59.4]} 4. g3 {[%clk 0:00:58]} 4... Nf6 {[%clk 0:00:59.1]} 5. Bg2 {[%clk 0:00:57.8]} 5... Nbd7 {[%clk 0:00:58.1]} 6. O-O {[%clk 0:00:57.5]} 6... Bd6 {[%clk 0:00:57.8]} 7. Qb3 {[%clk 0:00:57]} 7... e5 {[%clk 0:00:57.3]} 8. Qc2 {[%clk 0:00:56.7]} 8... e4 {[%clk 0:00:56.4]} 9. Nfd2 {[%clk 0:00:56.4]} 9... O-O {[%clk 0:00:56]} 10. e3 {[%clk 0:00:56.1]} 10... c5 {[%clk 0:00:55.7]} 11. a3 {[%clk 0:00:55.8]} 11... cxd4 {[%clk 0:00:54.6]} 12. cxd4 {[%clk 0:00:54.4]} 12... b6 {[%clk 0:00:54.4]} 13. Qb3 {[%clk 0:00:53.8]} 13... Ba6 {[%clk 0:00:54.1]} 14. Re1 {[%clk 0:00:51.4]} 14... Rc8 {[%clk 0:00:53.7]} 15. Nc3 {[%clk 0:00:50.6]} 15... Ng4 {[%clk 0:00:46.3]} 16. Nxd5 {[%clk 0:00:49.2]} 16... Nh6 {[%clk 0:00:46]} 17. Nxe4 {[%clk 0:00:46.9]} 17... Nf5 {[%clk 0:00:44.6]} 18. Nxd6 {[%clk 0:00:46]} 18... Rc6 {[%clk 0:00:44.3]} 19. Nxf5 {[%clk 0:00:43.1]} 19... g6 {[%clk 0:00:43.9]} 20. Nde7+ {[%clk 0:00:42.1]} 20... Kh8 {[%clk 0:00:41.4]} 21. Bxc6 {[%clk 0:00:41.2]} 21... Qc7 {[%clk 0:00:41.1]} 22. Bxd7 {[%clk 0:00:40.6]} 22... Qxd7 {[%clk 0:00:40.3]} 23. Bd2 {[%clk 0:00:39.5]} 23... Re8 {[%clk 0:00:37.8]} 24. Rec1 {[%clk 0:00:37.4]} 24... gxf5 {[%clk 0:00:36.6]} 25. Nxf5 {[%clk 0:00:36.3]} 25... Qxf5 {[%clk 0:00:33.9]} 26. Qc2 {[%clk 0:00:34.9]} 26... Bd3 {[%clk 0:00:33]} 27. Qc3 {[%clk 0:00:32.7]} 27... Be4 {[%clk 0:00:30.4]} 28. Qc7 {[%clk 0:00:30.4]} 28... Qf3 {[%clk 0:00:28.8]} 29. Kf1 {[%clk 0:00:25.2]} 29... Bd3+ {[%clk 0:00:26.5]} 30. Ke1 {[%clk 0:00:23.2]} 30... Qe2# {[%clk 0:00:25.1]} 0-1

[Event "Live Chess"]
[Site "Chess.com"]
[Date "2011.02.01"]
[Round "-"]
[White "secretidentityx"]
[Black "hipposcottimus"]
[Result "0-1"]
[CurrentPosition "k2r4/pp1q2pp/8/n3p1P1/3p4/1P6/P2Q4/K1B5 w - -"]
[Timezone "UTC"]
[ECO "A00"]
[ECOUrl "https://www.chess.com/openings/Kings-Fianchetto-Opening-1...e5"]
[UTCDate "2011.02.01"]
[UTCTime "05:26:49"]
[WhiteElo "1708"]
[BlackElo "1716"]
[TimeControl "60"]
[Termination "hipposcottimus won on time"]
[StartTime "05:26:49"]
[EndDate "2011.02.01"]
[EndTime "05:29:01"]
[Link "https://www.chess.com/game/live/93536287"]

1. g3 {[%clk 0:01:00]} 1... e5 {[%clk 0:01:00]} 2. e4 {[%clk 0:00:59.5]} 2... d5 {[%clk 0:00:59.8]} 3. d3 {[%clk 0:00:58.9]} 3... d4 {[%clk 0:00:58.6]} 4. b3 {[%clk 0:00:58.1]} 4... c5 {[%clk 0:00:57.7]} 5. Bb2 {[%clk 0:00:56.9]} 5... f5 {[%clk 0:00:57.4]} 6. Nd2 {[%clk 0:00:56.2]} 6... Nf6 {[%clk 0:00:55.6]} 7. Ne2 {[%clk 0:00:55.5]} 7... fxe4 {[%clk 0:00:54.6]} 8. dxe4 {[%clk 0:00:51.8]} 8... Bg4 {[%clk 0:00:54.2]} 9. Bg2 {[%clk 0:00:50.2]} 9... Bd6 {[%clk 0:00:51.8]} 10. f3 {[%clk 0:00:49.3]} 10... Bd7 {[%clk 0:00:49.6]} 11. g4 {[%clk 0:00:48.3]} 11... Bb5 {[%clk 0:00:49.3]} 12. h4 {[%clk 0:00:45.4]} 12... Bxe2 {[%clk 0:00:46.3]} 13. Qxe2 {[%clk 0:00:43.8]} 13... Nc6 {[%clk 0:00:45.8]} 14. g5 {[%clk 0:00:41.7]} 14... Nd7 {[%clk 0:00:45.5]} 15. Bh3 {[%clk 0:00:39]} 15... Qc7 {[%clk 0:00:45.3]} 16. O-O-O {[%clk 0:00:36.5]} 16... O-O-O {[%clk 0:00:43.5]} 17. Nc4 {[%clk 0:00:31.9]} 17... Kb8 {[%clk 0:00:42.3]} 18. Nxd6 {[%clk 0:00:29.9]} 18... Qxd6 {[%clk 0:00:42]} 19. Bxd7 {[%clk 0:00:26.2]} 19... Qxd7 {[%clk 0:00:40.7]} 20. Qc4 {[%clk 0:00:25.5]} 20... Rc8 {[%clk 0:00:37.6]} 21. c3 {[%clk 0:00:24.7]} 21... Na5 {[%clk 0:00:36.6]} 22. Qe2 {[%clk 0:00:23.2]} 22... Qc7 {[%clk 0:00:35.8]} 23. cxd4 {[%clk 0:00:21.9]} 23... cxd4+ {[%clk 0:00:35.5]} 24. Kb1 {[%clk 0:00:21.2]} 24... Qf7 {[%clk 0:00:31.5]} 25. Rc1 {[%clk 0:00:19.9]} 25... Nc6 {[%clk 0:00:30.9]} 26. Qc4 {[%clk 0:00:18.3]} 26... Qxf3 {[%clk 0:00:28.6]} 27. Qd5 {[%clk 0:00:17.2]} 27... Qg4 {[%clk 0:00:26.3]} 28. Qd6+ {[%clk 0:00:16.2]} 28... Ka8 {[%clk 0:00:24.1]} 29. Rc2 {[%clk 0:00:14.2]} 29... Qxe4 {[%clk 0:00:22.7]} 30. Rc1 {[%clk 0:00:13.2]} 30... Na5 {[%clk 0:00:17.3]} 31. Ka1 {[%clk 0:00:11.7]} 31... Rxc2 {[%clk 0:00:16.2]} 32. Rxc2 {[%clk 0:00:10.2]} 32... Qxc2 {[%clk 0:00:15.7]} 33. Qa3 {[%clk 0:00:04.9]} 33... Qd1+ {[%clk 0:00:14.6]} 34. Bc1 {[%clk 0:00:04.1]} 34... Qg4 {[%clk 0:00:14.2]} 35. Qb2 {[%clk 0:00:03.3]} 35... Qxh4 {[%clk 0:00:13.5]} 36. Qd2 {[%clk 0:00:02.8]} 36... Qg4 {[%clk 0:00:11.4]} 37. Qe2 {[%clk 0:00:02.5]} 37... Qd7 {[%clk 0:00:10.6]} 38. Qd2 {[%clk 0:00:01.6]} 38... Qc8 {[%clk 0:00:10.2]} 39. Qc2 {[%clk 0:00:01]} 39... Rd8 {[%clk 0:00:09.7]} 40. Qd2 {[%clk 0:00:00.1]} 40... Qd7 {[%clk 0:00:08.6]} 0-1

[Event "Live Chess"]
[Site "Chess.com"]
[Date "2011.02.01"]
[Round "-"]
[White "hipposcottimus"]
[Black "rodolf"]
[Result "0-1"]
[CurrentPosition "5bk1/3p1p1p/2p1p1p1/2P1P3/3P1P2/7P/r4qP1/5K2 w - -"]
[Timezone "UTC"]
[ECO "B06"]
[ECOUrl "https://www.chess.com/openings/Modern-Defense-with-1-e4"]
[UTCDate "2011.02.01"]
[UTCTime "05:23:49"]
[WhiteElo "1708"]
[BlackElo "1568"]
[TimeControl "60"]
[Termination "rodolf won by checkmate"]
[StartTime "05:23:49"]
[EndDate "2011.02.01"]
[EndTime "05:25:31"]
[Link "https://www.chess.com/game/live/93535682"]

1. e4 {[%clk 0:01:00]} 1... g6 {[%clk 0:01:00]} 2. e5 {[%clk 0:00:59]} 2... Bg7 {[%clk 0:00:59.6]} 3. d4 {[%clk 0:00:58.8]} 3... e6 {[%clk 0:00:59.1]} 4. f4 {[%clk 0:00:57.6]} 4... c6 {[%clk 0:00:58.7]} 5. c4 {[%clk 0:00:55.8]} 5... b5 {[%clk 0:00:58.4]} 6. b3 {[%clk 0:00:53.8]} 6... bxc4 {[%clk 0:00:57.2]} 7. bxc4 {[%clk 0:00:52.5]} 7... a5 {[%clk 0:00:56.6]} 8. Nf3 {[%clk 0:00:47.6]} 8... a4 {[%clk 0:00:55.9]} 9. Be2 {[%clk 0:00:46.9]} 9... Qa5+ {[%clk 0:00:53.9]} 10. Bd2 {[%clk 0:00:45.5]} 10... Qb6 {[%clk 0:00:53]} 11. O-O {[%clk 0:00:42.7]} 11... Na6 {[%clk 0:00:52]} 12. c5 {[%clk 0:00:41.3]} 12... Qc7 {[%clk 0:00:50.3]} 13. Bxa6 {[%clk 0:00:41]} 13... Bxa6 {[%clk 0:00:48.4]} 14. Qe2 {[%clk 0:00:40.7]} 14... Bxe2 {[%clk 0:00:47.1]} 15. Rf2 {[%clk 0:00:40.3]} 15... Bxf3 {[%clk 0:00:44.3]} 16. Nc3 {[%clk 0:00:40]} 16... Ra5 {[%clk 0:00:42.6]} 17. Rxf3 {[%clk 0:00:39.3]} 17... Ne7 {[%clk 0:00:41.2]} 18. Rb1 {[%clk 0:00:38.6]} 18... Nf5 {[%clk 0:00:40.2]} 19. Rb4 {[%clk 0:00:37.3]} 19... O-O {[%clk 0:00:38.9]} 20. Nxa4 {[%clk 0:00:36.4]} 20... Rxa4 {[%clk 0:00:37.7]} 21. Rxa4 {[%clk 0:00:35.3]} 21... Rb8 {[%clk 0:00:36.3]} 22. Rf1 {[%clk 0:00:31.6]} 22... Bf8 {[%clk 0:00:35.3]} 23. Rc4 {[%clk 0:00:30.3]} 23... Rb2 {[%clk 0:00:32.9]} 24. Bc3 {[%clk 0:00:28.2]} 24... Rxa2 {[%clk 0:00:31.1]} 25. Be1 {[%clk 0:00:25]} 25... Ne3 {[%clk 0:00:30.2]} 26. Rf3 {[%clk 0:00:22.4]} 26... Nxc4 {[%clk 0:00:28.9]} 27. Bh4 {[%clk 0:00:20.4]} 27... Qa5 {[%clk 0:00:27.6]} 28. Rf1 {[%clk 0:00:19.6]} 28... Qd2 {[%clk 0:00:26.2]} 29. Bf2 {[%clk 0:00:19.3]} 29... Ne3 {[%clk 0:00:23.4]} 30. h3 {[%clk 0:00:13.2]} 30... Nxf1 {[%clk 0:00:22.1]} 31. Kxf1 {[%clk 0:00:12]} 31... Qxf2# {[%clk 0:00:21.6]} 0-1

[Event "Live Chess"]
[Site "Chess.com"]
[Date "2011.02.01"]
[Round "-"]
[White "rodolf"]
[Black "hipposcottimus"]
[Result "0-1"]
[CurrentPosition "5r1k/6pp/p3q3/1p1b4/2pPp1n1/2P1Q1P1/PP3BBP/R3K2R w KQ -"]
[Timezone "UTC"]
[ECO "B01"]
[ECOUrl "https://www.chess.com/openings/Scandinavian-Defense-Mieses-Kotrc-Variation"]
[UTCDate "2011.02.01"]
[UTCTime "05:21:37"]
[WhiteElo "1556"]
[BlackElo "1718"]
[TimeControl "60"]
[Termination "hipposcottimus won on time"]
[StartTime "05:21:37"]
[EndDate "2011.02.01"]
[EndTime "05:23:31"]
[Link "https://www.chess.com/game/live/93535198"]

1. e4 {[%clk 0:01:00]} 1... d5 {[%clk 0:01:00]} 2. exd5 {[%clk 0:00:54.2]} 2... Qxd5 {[%clk 0:00:59.7]} 3. Ne2 {[%clk 0:00:49.3]} 3... Qd8 {[%clk 0:00:59.4]} 4. d3 {[%clk 0:00:47.9]} 4... e5 {[%clk 0:00:59]} 5. f3 {[%clk 0:00:47.4]} 5... f5 {[%clk 0:00:58.7]} 6. Be3 {[%clk 0:00:46.6]} 6... Nf6 {[%clk 0:00:58.4]} 7. Bf2 {[%clk 0:00:46.1]} 7... c5 {[%clk 0:00:57.1]} 8. g3 {[%clk 0:00:45.7]} 8... Nc6 {[%clk 0:00:56.7]} 9. Nd2 {[%clk 0:00:45]} 9... Bd6 {[%clk 0:00:55.1]} 10. Nb3 {[%clk 0:00:44.5]} 10... O-O {[%clk 0:00:54.8]} 11. Qd2 {[%clk 0:00:43.9]} 11... Na5 {[%clk 0:00:54.4]} 12. Nxa5 {[%clk 0:00:40.9]} 12... b6 {[%clk 0:00:53.3]} 13. Nc4 {[%clk 0:00:39.4]} 13... Qc7 {[%clk 0:00:53]} 14. Nxd6 {[%clk 0:00:38.5]} 14... Qxd6 {[%clk 0:00:52.8]} 15. Nc3 {[%clk 0:00:38.1]} 15... Bb7 {[%clk 0:00:52.5]} 16. Be2 {[%clk 0:00:37.3]} 16... e4 {[%clk 0:00:50.6]} 17. fxe4 {[%clk 0:00:33.9]} 17... fxe4 {[%clk 0:00:49.6]} 18. Nb5 {[%clk 0:00:31.9]} 18... Qc6 {[%clk 0:00:43.4]} 19. d4 {[%clk 0:00:28.4]} 19... a6 {[%clk 0:00:39.8]} 20. Nc3 {[%clk 0:00:24.4]} 20... c4 {[%clk 0:00:37.4]} 21. Nd1 {[%clk 0:00:20.5]} 21... Rad8 {[%clk 0:00:35.3]} 22. c3 {[%clk 0:00:19.3]} 22... Rd5 {[%clk 0:00:34.4]} 23. Ne3 {[%clk 0:00:16.8]} 23... Rd6 {[%clk 0:00:32.3]} 24. Nf5 {[%clk 0:00:13.6]} 24... Rd5 {[%clk 0:00:31]} 25. Bf1 {[%clk 0:00:10.2]} 25... Kh8 {[%clk 0:00:29.5]} 26. Ne3 {[%clk 0:00:08.5]} 26... Rd6 {[%clk 0:00:28.4]} 27. Bg2 {[%clk 0:00:06.2]} 27... b5 {[%clk 0:00:27.6]} 28. Nf5 {[%clk 0:00:05.2]} 28... Rd5 {[%clk 0:00:25.7]} 29. Ne7 {[%clk 0:00:03.6]} 29... Qe6 {[%clk 0:00:22.8]} 30. Nxd5 {[%clk 0:00:02.5]} 30... Bxd5 {[%clk 0:00:21.5]} 31. Qe3 {[%clk 0:00:01.8]} 31... Ng4 {[%clk 0:00:20.6]} 0-1

[Event "Live Chess"]
[Site "Chess.com"]
[Date "2011.02.01"]
[Round "-"]
[White "hipposcottimus"]
[Black "rodolf"]
[Result "1-0"]
[CurrentPosition "8/p7/8/5qk1/3NB3/7P/PPP1Q1P1/6K1 b - -"]
[Timezone "UTC"]
[ECO "B07"]
[ECOUrl "https://www.chess.com/openings/Pirc-Defense-Maroczy-Defense"]
[UTCDate "2011.02.01"]
[UTCTime "05:19:12"]
[WhiteElo "1713"]
[BlackElo "1561"]
[TimeControl "60"]
[Termination "hipposcottimus won on time"]
[StartTime "05:19:12"]
[EndDate "2011.02.01"]
[EndTime "05:21:19"]
[Link "https://www.chess.com/game/live/93534698"]

1. e4 {[%clk 0:01:00]} 1... e5 {[%clk 0:01:00]} 2. d4 {[%clk 0:00:58.8]} 2... d6 {[%clk 0:00:59.5]} 3. d5 {[%clk 0:00:57.9]} 3... Bd7 {[%clk 0:00:58.1]} 4. f4 {[%clk 0:00:57.5]} 4... Bg4 {[%clk 0:00:56.3]} 5. Qxg4 {[%clk 0:00:54.9]} 5... h6 {[%clk 0:00:55.5]} 6. fxe5 {[%clk 0:00:53.6]} 6... dxe5 {[%clk 0:00:53.9]} 7. Nf3 {[%clk 0:00:51.9]} 7... Be7 {[%clk 0:00:53.3]} 8. Nxe5 {[%clk 0:00:50.5]} 8... Nd7 {[%clk 0:00:52.3]} 9. Qxg7 {[%clk 0:00:49.2]} 9... Ngf6 {[%clk 0:00:49.9]} 10. Qxh8+ {[%clk 0:00:48.1]} 10... Nf8 {[%clk 0:00:48.8]} 11. Qxh6 {[%clk 0:00:44.4]} 11... Nxe4 {[%clk 0:00:47]} 12. Bb5+ {[%clk 0:00:42.7]} 12... c6 {[%clk 0:00:45.5]} 13. dxc6 {[%clk 0:00:40.7]} 13... bxc6 {[%clk 0:00:44.5]} 14. Bxc6+ {[%clk 0:00:39.6]} 14... Nd7 {[%clk 0:00:43.6]} 15. Qh8+ {[%clk 0:00:38.3]} 15... Bf8 {[%clk 0:00:41.5]} 16. Bh6 {[%clk 0:00:37.9]} 16... Ke7 {[%clk 0:00:39.6]} 17. O-O {[%clk 0:00:31.9]} 17... Nef6 {[%clk 0:00:36.7]} 18. Rxf6 {[%clk 0:00:30.6]} 18... Nxf6 {[%clk 0:00:34.8]} 19. Bxf8+ {[%clk 0:00:29.7]} 19... Qxf8 {[%clk 0:00:31.8]} 20. Qh4 {[%clk 0:00:28.7]} 20... Qg7 {[%clk 0:00:29.5]} 21. Qb4+ {[%clk 0:00:23.2]} 21... Ke6 {[%clk 0:00:25]} 22. Bxa8 {[%clk 0:00:22.3]} 22... Kxe5 {[%clk 0:00:23.6]} 23. Qc3+ {[%clk 0:00:20.3]} 23... Kf5 {[%clk 0:00:22.6]} 24. Nd2 {[%clk 0:00:20]} 24... Kg5 {[%clk 0:00:21.8]} 25. Nf3+ {[%clk 0:00:19.1]} 25... Kh6 {[%clk 0:00:21.2]} 26. Qd3 {[%clk 0:00:18]} 26... Ng4 {[%clk 0:00:17.7]} 27. Qd2+ {[%clk 0:00:17.4]} 27... Kh5 {[%clk 0:00:14.8]} 28. Rf1 {[%clk 0:00:16.8]} 28... f5 {[%clk 0:00:13.8]} 29. Bd5 {[%clk 0:00:15.1]} 29... Qg6 {[%clk 0:00:11.3]} 30. h3 {[%clk 0:00:14.7]} 30... Nf6 {[%clk 0:00:09.6]} 31. Nd4 {[%clk 0:00:13.6]} 31... Ne4 {[%clk 0:00:07.9]} 32. Rxf5+ {[%clk 0:00:12.7]} 32... Qxf5 {[%clk 0:00:06.3]} 33. Qe2+ {[%clk 0:00:11.2]} 33... Kg5 {[%clk 0:00:00.7]} 34. Bxe4 {[%clk 0:00:10]} 1-0